[Event "BL 2024-25"]
[Site "Austria"]
[Date "2024.10.11"]
[Round "3.25"]
[White "Sarana, Alexey"]
[Black "Nguyen, Thai Dai Van"]
[Result "1/2-1/2"]
[Annotator "TA"]
[ECO "E47"]
[WhiteElo "2717"]
[BlackElo "2663"]
[PlyCount "109"]
[EventDate "2024.08.28"]
[EventType "team-tourn"]
[EventCountry "AUT"]
[SourceTitle "playchess.com"]
[Source "ChessBase"]
[SourceQuality "1"]
[WhiteTeam "Linz"]
[BlackTeam "Mistelbach"]
[TimeControl "40/5400+30:1800+30"]

{[%evp 9,109,0,0,0,10,26,18,0,0,0,0,0,5,0,0,0,4,0,7,2,0,0,0,-8,-4,0,0,0,-5,-4,-2,0,0,-17,-7,-10,-3,-10,-7,-8,-10,-29,-18,-27,-8,-23,-6,-17,-7,-5,0,-20,0,-13,0,-13,-13,-20,-4,-8,-15,-27,0,-37,-5,-21,0,0,0,0,0,0,0,0,0,-11,0,0,-17,-41,0,-18,0,-4,0,0,0,-33,0,-17,0,-12,0,0,0,0,0,0,0,0,0,0]} 1. d4 {[%emt 0:00:04]} Nf6 {[%emt 0:00:09]} 2. c4 {[%emt 0:00:05]} e6 {[%emt 0:00:04]} 3. Nc3 {[%emt 0:00:09]} Bb4 {[%emt 0:00:09]} 4. e3 {[%emt 0:00:03]} O-O {[%emt 0:00:54]} 5. Bd3 {[%emt 0:00:13]} c5 {[%emt 0:00:33]} 6. a3 {[%emt 0:00:19]} cxd4 {[%emt 0:01:29]} 7. axb4 {[%emt 0:00:24]} dxc3 {[%emt 0:00:10]} 8. Ne2 {[%emt 0:05:51]} Nc6 {[%emt 0:09:29][%cal Bb8c6,Bc6e5,Be5d3][%mdl 32]} 9. b5 {[%emt 0:01:21]} Ne5 {[%emt 0:00:10]} 10. Nxc3 {[%emt 0:00:20]} d5 {[%emt 0:00:33]} 11. c5 {[%emt 0:00:27]} Nxd3+ {[%emt 0:09:09]} 12. Qxd3 {[%emt 0:00:22]} Bd7 {[%emt 0:05:22]} 13. f3 {[%emt 0:03:25] Wards off Ne4} Qc8 {[%emt 0:09:10]} 14. b4 {[%emt 0:05:57] Black is weak on the dark squares} a6 {[%emt 0:01:09]} 15. bxa6 {[%emt 0:10:01]} Rxa6 {[%emt 0:00:56]} 16. Bb2 {[%emt 0:07:42]} Rxa1+ {[%emt 0:00:37]} 17. Bxa1 {[%emt 0:00:02]} b6 {[%emt 0:02:39]} 18. cxb6 {[%emt 0:04:37]} Qb7 {[%emt 0:01:21]} 19. O-O {[%emt 0:02:52]} Qxb6 {[%emt 0:01:28]} 20. Rb1 {[%emt 0:00:35]} Rb8 {[%emt 0:12:12]} 21. Nd1 {[%emt 0:06:06]} Bb5 {[%emt 0:07:22]} 22. Qd2 {[%emt 0:00:07]} Nd7 {[%emt 0:04:16]} 23. Bd4 {[%emt 0:02:00]} Qd6 {[%emt 0:03:12]} 24. f4 {[%emt 0:05:29]} f6 {[%emt 0:01:47]} 25. Nf2 {[%emt 0:02:05]} Bc4 {[%emt 0:01:25]} 26. Bc3 {[%emt 0:00:30]} e5 {[%emt 0:06:06]} 27. Ra1 {[%emt 0:00:59]} Re8 {[%emt 0:02:18]} 28. h3 {[%emt 0:03:20]} Qb6 {[%emt 0:02:28]} 29. Re1 {[%emt 0:04:20]} Ra8 {[%emt 0:01:48]} 30. Ra1 {[%emt 0:00:44]} Re8 {[%emt 0:00:04]} 31. Re1 {[%emt 0:00:08]} h6 {[%emt 0:04:50]} 32. Nd3 {[%emt 0:02:54]} Qc6 {[%emt 0:00:12]} 33. Rc1 {[%emt 0:02:29]} Qd6 {[%emt 0:03:57]} 34. Re1 {[%emt 0:05:56]} Bb5 {[%emt 0:02:36]} 35. Nf2 {[%emt 0:01:29]} Bc4 {[%emt 0:00:39]} 36. Ra1 {[%emt 0:01:44]} Qb6 {[%emt 0:01:08]} 37. Re1 {[%emt 0:01:30]} Nb8 {[%emt 0:04:09]} 38. Nd3 {[%emt 0:01:32][%cal Rf4e5]} Nd7 {[%emt 0:02:15]} 39. Nb2 {[%emt 0:05:05] [#] Nxc4 is the strong threat.} Qc6 {[%emt 0:00:50]} (39... exf4 $2 {loses.} 40. Nxc4 dxc4 41. Qxd7 $18) 40. Rd1 {[%emt 0:11:27]} Nb6 {[%emt 0:00:23][%cal Od5d4] aiming for ...d4!} 41. fxe5 {[%emt 0:33:04]} fxe5 {[%emt 0:30:06]} 42. Nd3 {[%emt 0:00:04]} Nd7 {[%emt 0:00:00]} 43. Ra1 {[%emt 0:00:00]} Qd6 {[%emt 0:00:00]} 44. Nf2 {[%emt 0:04:39]} Nf6 {[%emt 0:00:00]} (44... Qg6 {keeps more tension.} 45. Ra7 Nf6 46. Qd1 d4) 45. Ra5 {[%emt 0:00:00]} Qe6 {[%emt 0:00:00]} 46. Qb2 {[%emt 0:00:00]} Nd7 {[%emt 0:00:00]} 47. Ra7 {[%emt 0:00:00]} Bb5 {[%emt 0:00:00]} 48. Ra5 {[%emt 0:00:00]} Bc4 {[%emt 0:00:00]} 49. Ra7 {[%emt 0:00:00] The position is equal.} Bb5 {[%emt 0:00:00]} 50. Ra5 {[%emt 0:00:00]} Qb6 {[%emt 0:00:00]} 51. Qa1 {[%emt 0:00:00]} Bc4 {[%emt 0:00:00]} 52. Ra8 {[%emt 0:00:00]} Rxa8 {[%emt 0:00:00]} 53. Qxa8+ {[%emt 0:00:00]} Kh7 {[%emt 0:00:00]} 54. Qe8 {[%emt 0:00:00]} Qxe3 {[%emt 0:05:57]} 55. Qxd7 {[%emt 0:00:00] A balanced but interesting game.   Weighted Error Value: White=0.06 (flawless) /Black=0.07 (flawless) .  Inaccurate:     	White=2     	Black=3      OK:         	White=22    	Black=19     Best:        	White=2     	---} 1/2-1/2

[Event "BL 2024-25"]
[Site "Austria"]
[Date "2024.10.11"]
[Round "3.26"]
[White "Pechac, Jergus"]
[Black "Andreikin, Dmitry"]
[Result "1-0"]
[Annotator "TA"]
[ECO "B41"]
[WhiteElo "2582"]
[BlackElo "2729"]
[PlyCount "71"]
[EventDate "2024.08.28"]
[EventType "team-tourn"]
[EventCountry "AUT"]
[SourceTitle "playchess.com"]
[Source "ChessBase"]
[SourceQuality "1"]
[WhiteTeam "Mistelbach"]
[BlackTeam "Linz"]
[TimeControl "40/5400+30:1800+30"]

{[%evp 13,71,21,58,27,35,33,58,54,53,56,98,73,95,61,62,54,37,17,129,34,28,29,28,21,67,87,87,79,152,149,157,148,146,94,100,92,103,94,99,102,101,100,94,93,102,86,87,32,79,93,29975,29976,29973,29974,29989,29990,29993,29994,29997,29998]} 1. e4 {[%emt 0:00:04]} c5 {[%emt 0:00:07]} 2. Nf3 {[%emt 0:00:06]} e6 {[%emt 0:00:04]} 3. d4 {[%emt 0:00:49]} cxd4 {[%emt 0:00:05]} 4. Nxd4 {[%emt 0:00:05]} a6 {[%emt 0:00:05]} 5. c4 {[%emt 0:00:42]} Nf6 {[%emt 0:00:22]} 6. Nc3 {[%emt 0:00:06]} Qc7 {[%emt 0:00:30]} 7. a3 {[%emt 0:00:18]} b6 {[%emt 0:00:34]} 8. f4 {[%emt 0:00:45]} Bb7 {[%emt 0:05:35]} 9. Bd3 {[%emt 0:00:52]} Bc5 {[%emt 0:10:56]} 10. Nb3 {[%emt 0:01:47] White is slightly better.} d6 {[%emt 0:11:32]} 11. Nxc5 {[%emt 0:01:17]} Qxc5 {[%emt 0:00:12]} 12. Qe2 {[%emt 0:03:11]} Nbd7 {[%emt 0:02:27]} 13. g4 {[%emt 0:08:37]} h6 {[%emt 0:12:41]} 14. b4 {[%emt 0:08:03]} Qc7 {[%emt 0:00:11][%cal Od6d5]} 15. Bb2 {[%emt 0:00:15]} g5 {[%emt 0:11:19]} (15... d5 $11 16. exd5 Qxf4) 16. Rf1 {[%emt 0:01:29]} (16. O-O $16) 16... gxf4 $14 {[%emt 0:05:58]} 17. Rxf4 {[%emt 0:00:09]} d5 $1 {[%emt 0:03:30]} 18. Rxf6 {[%emt 0:09:02]} (18. Nxd5 {with more complications.} Nxd5 19. exd5 Qxf4 20. Bxh8 O-O-O 21. Bb2) 18... dxc4 {[%emt 0:03:46] [#]} (18... Nxf6 $11 19. exd5 O-O-O) 19. Nd5 $1 {[%emt 0:01:22]} Bxd5 {[%emt 0:02:25]} (19... exd5 $2 20. exd5+ Kd8 21. d6 $18 (21. Rxf7 Re8 $11)) 20. exd5 {[%emt 0:00:07]} Nxf6 {[%emt 0:09:02]} ({Black should play} 20... cxd3 21. Rxe6+ Kd8 (21... fxe6 22. Qxe6+ Kd8 23. Bxh8 $16) 22. Qxd3 fxe6 23. Bxh8 Qxh2) 21. Bxc4 $16 {[%emt 0:11:14] White is more active.} Qf4 {[%emt 0:00:05]} 22. dxe6 {[%emt 0:01:54]} (22. Bxa6 O-O 23. d6 Nxg4 $17) 22... O-O {[%emt 0:00:38][%cal Be8g8,Bg8f7,Bf7g6,Bg6g7][%mdl 32]} 23. exf7+ {[%emt 0:17:12]} (23. Bxa6 Rxa6 (23... Nxg4 24. Rd1 $15) 24. Bc1 Qd6 (24... Qxg4 $2 25. Qxa6 Re8 26. Be3 $19) 25. Qxa6 Qe5+ (25... fxe6 26. Qe2 $11) (25... Qxe6+ $2 26. Qe2 $19) (25... Qxh2 $2 26. exf7+ Rxf7 27. Qc8+ Kg7 28. Qc3 $19) 26. Qe2 Qxa1 $19) ({White should try} 23. Rd1 $1 Rad8 (23... fxe6 $2 24. Bxe6+ Kh8 25. Rd5 $18) 24. exf7+ (24. Bxa6 Rxd1+ 25. Kxd1 Qd6+ 26. Kc2 Qxe6 $11) 24... Kg7 25. Bd5 (25. Bxa6 Rxd1+ 26. Kxd1 Kxf7 $16)) 23... Rxf7 {[%emt 0:04:31][%cal Oa8e8] Threatens to win with ...Re8!} 24. Be5 $1 {[%emt 0:12:38] A strong pair of Bishops.} (24. Bxf7+ Kxf7 25. Be5 (25. Bxf6 $2 Re8 $19) 25... Qxg4 26. Qxg4 Nxg4 $11) 24... Qg5 {[%emt 0:00:05][%cal Oa8e8] Hoping for ...Re8!} 25. Bxf7+ {[%emt 0:01:43]} Kxf7 {[%emt 0:00:06]} 26. Bxf6 $1 {[%emt 0:00:26]} Qxf6 {[%emt 0:00:09][%mdl 4096] Endgame. [#] KQR-KQR} 27. Qc4+ $1 {[%emt 0:00:04]} Kg6 {[%emt 0:08:06] [#]} 28. O-O-O $1 $36 {[%emt 0:02:02][%mdl 2048] Keeping Black busy.} Re8 {[%emt 0:00:51] Dodges Qe4+} 29. Kb1 {[%emt 0:05:28]} (29. Qxa6 $2 {is the wrong capture.} Re3 (29... Qc3+ 30. Kb1 $11) 30. Rd3 Re6 $19) 29... b5 {[%emt 0:03:55]} 30. Qc5 {[%emt 0:05:14]} (30. Qd3+ $16 Kg7 31. h3) 30... Re6 {[%emt 0:01:15]} (30... Re2 $14 31. Rd6 Re1+ 32. Kc2 Re6 33. Qh5+ Kg7 34. Rxe6 Qxe6) 31. h4 {[%emt 0:01:13][%cal Bh2h4,Bh4h5][%mdl 32]} Rc6 $2 {[%emt 0:01:26][%mdl 8192] This costs Black the game.} (31... Qf7 $16) 32. h5+ {[%emt 0:01:01] White mates.} Kg7 {[%emt 0:00:58]} 33. Qa7+ {[%emt 0:00:24]} Kf8 {[%emt 0:00:32]} 34. Qa8+ {[%emt 0:00:20]} Ke7 {[%emt 0:00:10]} 35. Qd8+ {[%emt 0:00:10]} Kf7 {[%emt 0:00:14]} 36. Rd7+ {[%emt 0:00:07] Weighted Error Value: White=0.15 (very precise) /Black=0.36.  Loses game:     	---       	Black=1      Mistake:       	White=3     	Black=4      Inaccurate:     	White=1     	Black=1      OK:         	White=6     	Black=8      Best:        	White=2     	Black=3      Strong:       	White=4     	Black=1} 1-0

[Event "BL 2024-25"]
[Site "Austria"]
[Date "2024.10.11"]
[Round "3.27"]
[White "Vitiugov, Nikita"]
[Black "Kraus, Tomas"]
[Result "1-0"]
[Annotator "TA"]
[ECO "B31"]
[WhiteElo "2667"]
[BlackElo "2461"]
[PlyCount "57"]
[EventDate "2024.08.28"]
[EventType "team-tourn"]
[EventCountry "AUT"]
[SourceTitle "playchess.com"]
[Source "ChessBase"]
[SourceQuality "1"]
[WhiteTeam "Linz"]
[BlackTeam "Mistelbach"]
[TimeControl "40/5400+30:1800+30"]

{[%evp 14,57,25,9,54,45,60,32,45,34,41,31,35,44,88,87,151,145,224,233,250,229,279,283,496,473,538,546,506,561,544,337,351,368,362,363,360,337,322,312,384,281,906,904,1716,1631]} 1. e4 c5 2. Nf3 Nc6 3. Bb5 g6 4. O-O Bg7 5. Re1 e5 6. Bxc6 dxc6 7. d3 Qe7 8. a4 a5 9. Na3 Nf6 10. Bg5 h6 {White is slightly better.} 11. Be3 b6 12. Nc4 {[%csl LRb6,LRe5]} Nd7 13. Nfd2 Ba6 14. f4 $36 {[%mdl 2048] Black is under strong pressure. White is more active.} Qe6 {[#]} (14... O-O-O $142) 15. f5 $1 $16 gxf5 (15... Qf6 $16 {is a better defense.} 16. fxg6 Qxg6) 16. exf5 $18 Qe7 17. Qg4 Bf6 18. Qf3 Rc8 $2 (18... Bxc4 19. Qxc6 (19. Nxc4 Rc8 $18) (19. dxc4 Bg7 $18) 19... O-O 20. Nxc4 (20. dxc4 Bg7 $18) 20... Rac8) 19. Ne4 Bxc4 20. dxc4 Kd8 {Black is weak on the light squares} 21. Rad1 Kc7 22. Rd6 Qxd6 23. Nxd6 Kxd6 24. Qh5 Rh7 25. c3 (25. Bxh6 Rch8 $16) 25... Kc7 26. Rd1 (26. Bxh6 Rch8 27. Rd1 Rxh6 28. Qxf7 Rd8 $16) 26... Rg8 27. Qe2 {Qd3 would now be deadly.} (27. Bxh6 Rgh8 $11) 27... Be7 $2 {[#]} (27... Rd8 28. Qh5 Be7) 28. f6 $1 {[%mdl 512]} Nxf6 {[#]} (28... Re8 29. Rxd7+) 29. Bf4 $1 {[%mdl 512] White took control after the opening.   Weighted Error Value: White=0.18 (very precise) /Black=0.36.  Mistake:       	---       	Black=4      Inaccurate:     	White=2     	Black=2      OK:         	White=9     	Black=6      Best:        	White=1     	Black=1      Strong:       	White=1     	---        Brilliant:      	White=1     	---} 1-0

[Event "BL 2024-25"]
[Site "Austria"]
[Date "2024.10.11"]
[Round "3.28"]
[White "Stalmach, Richard"]
[Black "Rodshtein, Maxim"]
[Result "0-1"]
[Annotator "TA"]
[ECO "D85"]
[WhiteElo "2433"]
[BlackElo "2613"]
[PlyCount "54"]
[EventDate "2024.08.28"]
[EventType "team-tourn"]
[EventCountry "AUT"]
[SourceTitle "playchess.com"]
[Source "ChessBase"]
[SourceQuality "1"]
[WhiteTeam "Mistelbach"]
[BlackTeam "Linz"]
[TimeControl "40/5400+30:1800+30"]

{[%evp 17,54,0,0,0,0,0,0,0,8,-24,-8,-93,-83,-139,-149,-149,-159,-184,-204,-206,-196,-283,-279,-323,-276,-417,-417,-424,-415,-1609,-1498,-1729,-1731,-1613,-1529,-2031,-2220,-2208,-1783]} 1. d4 {[%emt 0:00:03]} Nf6 {[%emt 0:00:33]} 2. c4 {[%emt 0:00:12]} g6 {[%emt 0:00:29]} 3. Nf3 {[%emt 0:00:37]} Bg7 {[%emt 0:00:09]} 4. Nc3 {[%emt 0:00:05]} d5 {[%emt 0:00:24]} 5. cxd5 {[%emt 0:00:16]} Nxd5 {[%emt 0:00:05]} 6. e4 {[%emt 0:00:06]} Nxc3 {[%emt 0:00:06]} 7. bxc3 {[%emt 0:00:04]} c5 {[%emt 0:00:05]} 8. h3 {[%emt 0:00:13]} O-O {[%emt 0:01:55]} 9. Be2 {[%emt 0:00:50]} b6 {[%emt 0:04:49]} 10. Be3 {[%emt 0:00:25]} Bb7 {[%emt 0:02:23]} 11. Qd3 {[%emt 0:00:29]} Qd7 {[%emt 0:10:48]} 12. Rd1 {[%emt 0:05:25] The position is equal.} (12. dxc5 $2 Qxd3 13. Bxd3 Bxc3+ 14. Ke2 Bxa1 15. Rxa1 Nd7 $19) 12... Qa4 {[%emt 0:04:33]} 13. d5 {[%emt 0:18:09]} ({But not} 13. dxc5 Bxe4 (13... Qxe4 14. Qxe4 Bxe4 15. O-O $17) 14. Qd2 Nc6 $17) 13... Qxa2 {[%emt 0:07:02]} 14. c4 {[%emt 0:00:32] [#]} (14. O-O $11 {remains equal.}) 14... Na6 $1 $17 {[%emt 0:02:12] ...Nb4 would now be deadly.} 15. Bd2 {[%emt 0:10:04]} (15. O-O $142) 15... Nb4 {[%emt 0:05:23] Black is more active.} 16. Bxb4 {[%emt 0:00:11]} cxb4 {[%emt 0:00:05]} 17. e5 {[%emt 0:01:19] [#]} b5 $1 {[%emt 0:08:14][%mdl 512]} 18. cxb5 {[%emt 0:11:47]} Rfd8 {[%emt 0:02:45][%cal Rd8d5]} 19. d6 {[%emt 0:02:07]} (19. O-O {might work better.}) 19... exd6 $19 {[%emt 0:00:25]} 20. exd6 {[%emt 0:00:11]} Rac8 {[%emt 0:12:14] White must now prevent ...Bc3+.} 21. d7 {[%emt 0:08:23]} (21. O-O $142) 21... Bc3+ {[%emt 0:05:00] A strong pair of Bishops.} 22. Kf1 {[%emt 0:04:38]} Rc7 {[%emt 0:00:06]} 23. Ng5 {[%emt 0:22:41]} (23. Qe3 $142 Kg7 (23... Rdxd7 24. Qe8+ Kg7 25. Rxd7 $16) (23... Rcxd7 24. Rxd7 Qa1+ 25. Bd1 $11) 24. Ne5) 23... Rcxd7 {[%emt 0:01:40] Black is clearly winning.} 24. Qxd7 {[%emt 0:00:06]} Rxd7 {[%emt 0:00:03]} 25. Rxd7 {[%emt 0:00:04]} Bd5 {[%emt 0:00:08] ( -> ...Qa1+)} 26. Rxd5 {[%emt 0:12:52]} Qxd5 {[%emt 0:00:17]} 27. f4 {[%emt 0:00:32]} Qd2 {[%emt 0:00:42] White did not feel at home in the position after the opening.   Weighted Error Value: White=0.94/Black=0.03 (flawless) .  Mistake:       	White=5     	---        Inaccurate:     	White=1     	---        OK:         	White=5     	Black=9      Best:        	White=1     	---        Strong:       	---       	Black=1} 0-1

[Event "BL 2024-25"]
[Site "Austria"]
[Date "2024.10.11"]
[Round "3.29"]
[White "Shimanov, Aleksandr"]
[Black "Bures, Jaroslav"]
[Result "1-0"]
[Annotator "TA"]
[ECO "A06"]
[WhiteElo "2582"]
[BlackElo "2407"]
[PlyCount "151"]
[EventDate "2024.08.28"]
[EventType "team-tourn"]
[EventCountry "AUT"]
[SourceTitle "playchess.com"]
[Source "ChessBase"]
[SourceQuality "1"]
[WhiteTeam "Linz"]
[BlackTeam "Mistelbach"]
[TimeControl "40/5400+30:1800+30"]

{[%evp 47,151,40,85,79,79,80,83,83,89,80,111,111,105,99,132,105,97,97,100,85,92,87,93,93,118,100,129,136,133,133,133,127,127,127,137,119,128,129,139,139,150,150,151,151,177,174,181,181,194,175,181,162,1385,1414,1554,1404,1318,1544,1518,1483,1881,1881,1786,1641,1904,1929,1819,1193,6571,6571,6001,5106,4727,559,4927,2558,1212,173,29975,29976,29979,29975,29975,29976,29976,29977,29977,29978,29979,29977,29977,29978,29978,29979,29979,29980,29980,29981,29981,29982,29982,29983,29983,29984,29983,29984]} 1. Nf3 {[%emt 0:00:18]} d5 {[%emt 0:00:22]} 2. b3 {[%emt 0:02:01]} Bg4 {[%emt 0:06:28]} 3. Bb2 {[%emt 0:00:49]} Nd7 {[%emt 0:00:45]} 4. e3 {[%emt 0:00:36]} e6 {[%emt 0:13:27]} 5. h3 {[%emt 0:04:16]} Bh5 {[%emt 0:00:17]} 6. d3 {[%emt 0:01:32] A06: Réti Opening: 1 Nf3 d5.} h6 {[%emt 0:03:11]} 7. Nbd2 {[%emt 0:04:03]} c5 {[%emt 0:06:39]} 8. c4 $146 {[%emt 0:06:11]} ({Predecessor:} 8. g4 Bg6 9. Bg2 Ne7 10. Qe2 Nc6 11. O-O-O a5 12. h4 a4 13. h5 Bh7 14. g5 axb3 15. axb3 {1-0 Efimenko,Z (2602)-Kuzubov,Y (2643) Gladiators May 10th blitz 2020 (3)}) 8... Ngf6 {[%emt 0:00:34]} 9. Be2 {[%emt 0:07:13]} Bd6 {[%emt 0:15:08]} 10. cxd5 {[%emt 0:12:46]} exd5 {[%emt 0:00:06]} 11. Nh4 {[%emt 0:00:24]} Bxe2 {[%emt 0:03:47]} 12. Qxe2 {[%emt 0:00:14]} O-O {[%emt 0:02:36]} 13. Nf5 {[%emt 0:13:56]} Be5 {[%emt 0:00:01]} 14. d4 {[%emt 0:00:09]} cxd4 {[%emt 0:00:07]} 15. Nxd4 {[%emt 0:00:13]} Rc8 {[%emt 0:04:28]} 16. O-O {[%emt 0:01:12]} Ne4 {[%emt 0:06:59]} 17. N2f3 {[%emt 0:02:39]} Bf6 {[%emt 0:02:17]} 18. Nf5 {[%emt 0:07:36]} Nc3 {[%emt 0:03:37]} 19. Bxc3 {[%emt 0:04:31]} Rxc3 {[%emt 0:02:06]} 20. Rad1 {[%emt 0:00:59]} Qa5 {[%emt 0:04:02]} 21. Nh2 {[%emt 0:01:26]} Ne5 {[%emt 0:03:18]} 22. f4 {[%emt 0:01:51]} Ng6 {[%emt 0:00:29]} 23. Ng4 {[%emt 0:00:51]} Rc6 {[%emt 0:00:19]} 24. a4 {[%emt 0:09:10]} Re8 {[%emt 0:04:41]} 25. Qb5 {[%emt 0:01:47]} Qxb5 {[%emt 0:01:52]} 26. axb5 {[%emt 0:00:05]} Rb6 {[%emt 0:03:01]} 27. Rxd5 {[%emt 0:02:34]} Ne7 {[%emt 0:00:02]} 28. Nxe7+ {[%emt 0:00:53]} Rxe7 {[%emt 0:00:01]} 29. Rfd1 {[%emt 0:02:23]} a6 {[%emt 0:02:36]} 30. Kf2 {[%emt 0:03:39]} Re4 {[%emt 0:02:25]} 31. bxa6 {[%emt 0:04:51]} bxa6 {[%emt 0:00:01]} 32. Rd6 {[%emt 0:00:05]} Re6 {[%emt 0:00:40]} 33. Rxe6 {[%emt 0:00:06]} fxe6 {[%emt 0:01:48]} 34. Rd3 {[%emt 0:00:59]} a5 {[%emt 0:01:12]} 35. Kf3 {[%emt 0:00:24]} Rb4 {[%emt 0:01:21]} 36. Nf2 {[%emt 0:00:18]} a4 {[%emt 0:00:59]} 37. bxa4 {[%emt 0:00:05]} Rxa4 {[%emt 0:00:02]} 38. Ne4 {[%emt 0:00:11]} Be7 {[%emt 0:00:34]} 39. Rb3 {[%emt 0:01:02]} Kf7 {[%emt 0:02:16]} 40. Rb7 {[%emt 0:00:11]} Kf8 {[%emt 0:00:21]} 41. Nc3 {[%emt 0:34:13]} Ra6 {[%emt 0:32:15]} 42. Rb5 {[%emt 0:00:00]} Bf6 {[%emt 0:00:00]} 43. Ne4 {[%emt 0:00:00]} Be7 {[%emt 0:00:00]} 44. g3 {[%emt 0:00:00]} Ra1 {[%emt 0:00:00]} 45. h4 {[%emt 0:00:00]} Rf1+ {[%emt 0:00:00]} 46. Ke2 {[%emt 0:00:00]} Rc1 {[%emt 0:00:00]} 47. h5 {[%emt 0:00:00]} Rc2+ {[%emt 0:00:00]} 48. Kf3 {[%emt 0:00:00]} Kf7 {[%emt 0:00:00]} 49. Nf2 {[%emt 0:00:00]} Rc5 $2 {[%emt 0:00:00]} (49... Rc3 50. Rb7 e5 51. fxe5 (51. Ne4 Rc6 $18) 51... Ke6) 50. Rxc5 $18 {[%emt 0:00:00]} Bxc5 {[%emt 0:00:00]} 51. Ng4 {[%emt 0:00:00]} Bd6 {[%emt 0:00:00]} 52. Ke4 {[%emt 0:00:00]} Bc7 {[%emt 0:00:00]} 53. Ne5+ {[%emt 0:00:00]} Kf6 {[%emt 0:00:00]} 54. Ng6 {[%emt 0:00:00]} Bb6 {[%emt 0:00:00]} 55. g4 {[%emt 0:00:00]} Bc7 {[%emt 0:00:00]} 56. Kf3 {[%emt 0:00:00]} Bd6 {[%emt 0:00:00]} 57. e4 {[%emt 0:00:00]} Bc7 {[%emt 0:00:00]} 58. e5+ {[%emt 0:00:00]} Kf7 {[%emt 0:00:00]} 59. Ke4 {[%emt 0:00:00]} Bb6 {[%emt 0:00:41]} 60. f5 {[%emt 0:00:00]} Bc5 {[%emt 0:00:58]} 61. Nf4 {[%emt 0:00:00]} exf5+ {[%emt 0:00:09]} 62. gxf5 $2 {[%emt 0:00:00]} (62. Kxf5 Ba3 63. Ke4) 62... Ba3 $2 {[%emt 0:00:29]} (62... Bg1 $18 63. Ne6 Bh2) 63. Kd5 {[%emt 0:00:00]} Ke7 {[%emt 0:00:59]} 64. Kc6 {[%emt 0:00:00]} Bb2 {[%emt 0:01:38]} 65. Ng6+ {[%emt 0:00:00]} Kf7 {[%emt 0:00:18] [#]} 66. Kd6 $1 {[%emt 0:00:00]} Bc3 {[%emt 0:01:10] [#]} 67. Nf4 $1 {[%emt 0:00:00]} Bb2 {[%emt 0:00:28]} 68. Nd5 {[%emt 0:00:00]} Ke8 {[%emt 0:02:25]} 69. Ke6 {[%emt 0:00:00]} Bd4 {[%emt 0:00:22]} 70. Nf4 {[%emt 0:00:00]} Bc3 {[%emt 0:01:45]} 71. Ng6 {[%emt 0:00:00]} Bb2 {[%emt 0:00:31]} 72. f6 {[%emt 0:00:00]} gxf6 {[%emt 0:00:15]} 73. exf6 {[%emt 0:00:00]} Ba3 {[%emt 0:00:31]} 74. f7+ {[%emt 0:00:00]} Kd8 {[%emt 0:00:02]} 75. f8=R+ {[%emt 0:00:00]} Bxf8 {[%emt 0:00:14]} 76. Nxf8 {[%emt 0:00:04]} 1-0